[Event "Masterklassen 2025"]
[Site "Uppsala, Sweden"]
[Date "2025.06.29"]
[Round "2.8"]
[White "Eklund, Joel"]
[Black "Karde, Douglas"]
[Result "0-1"]
[TimeControl "90 min for 40 move + 30 min with an increment of 30 sec starting move 1"]
[WhiteFideId "1705288"]
[BlackFideId "1761498"]
[WhiteElo "2194"]
[BlackElo "2064"]

1. c4 {[%clk 01:30:39]} {[%emt 00:00:12]} Nf6 {[%clk 01:30:55]} {[%emt
00:00:13]} 2. Nc3 {[%clk 01:30:57]} {[%emt 00:00:13]} d5 {[%clk 01:31:19]}
{[%emt 00:00:05]} 3. cxd5 {[%clk 01:30:22]} {[%emt 00:01:06]} Nxd5 {[%clk
01:29:24]} {[%emt 00:02:25]} 4. g3 {[%clk 01:30:33]} {[%emt 00:00:18]} g6
{[%clk 01:29:29]} {[%emt 00:00:25]} 5. Bg2 {[%clk 01:30:46]} {[%emt 00:00:17]}
Nxc3 {[%clk 01:29:52]} {[%emt 00:00:07]} 6. dxc3 {[%clk 01:27:10]} {[%emt
00:04:06]} Qxd1+ {[%clk 01:28:46]} {[%emt 00:01:36]} 7. Kxd1 {[%clk 01:27:35]}
{[%emt 00:00:06]} Bg7 {[%clk 01:28:46]} {[%emt 00:00:30]} 8. h4 {[%clk
01:25:37]} {[%emt 00:02:28]} O-O {[%clk 01:24:21]} {[%emt 00:04:54]} 9. h5
{[%clk 01:25:43]} {[%emt 00:00:25]} a5 {[%clk 01:24:36]} {[%emt 00:00:14]} 10.
a4 {[%clk 01:18:08]} {[%emt 00:08:05]} Nd7 {[%clk 01:21:27]} {[%emt 00:03:39]}
11. Nf3 {[%clk 01:07:40]} {[%emt 00:10:59]} Nc5 {[%clk 01:16:27]} {[%emt
00:05:29]} 12. Be3 {[%clk 01:04:54]} {[%emt 00:03:16]} Rd8+ {[%clk 01:14:20]}
{[%emt 00:02:37]} 13. Ke1 {[%clk 01:04:45]} {[%emt 00:00:39]} Ne4 {[%clk
01:12:31]} {[%emt 00:02:19]} 14. Nd4 {[%clk 01:00:51]} {[%emt 00:04:24]} Nd6
{[%clk 01:12:15]} {[%emt 00:00:46]} 15. Nb5 {[%clk 00:50:00]} {[%emt 00:11:23]}
Ne8 {[%clk 01:05:02]} {[%emt 00:07:42]} 16. Rd1 {[%clk 00:35:52]} {[%emt
00:14:37]} Rxd1+ {[%clk 01:05:10]} {[%emt 00:00:22]} 17. Kxd1 {[%clk 00:36:21]}
{[%emt 00:00:01]} c6 {[%clk 01:03:38]} {[%emt 00:02:03]} 18. Nd4 {[%clk
00:35:41]} {[%emt 00:01:10]} Nd6 {[%clk 00:58:23]} {[%emt 00:05:45]} 19. Nb3
{[%clk 00:26:02]} {[%emt 00:10:09]} Bf5 {[%clk 00:52:03]} {[%emt 00:06:50]} 20.
Bc5 {[%clk 00:21:59]} {[%emt 00:04:33]} Be4 {[%clk 00:42:10]} {[%emt 00:10:22]}
21. f3 {[%emt 00:01:56]} Bd5 {[%clk 00:41:20]} {[%emt 00:01:15]} 22. Kc2 {[%clk
00:20:56]} {[%emt 00:00:13]} b6 {[%clk 00:38:12]} {[%emt 00:03:38]} 23. Bf2
{[%clk 00:17:04]} {[%emt 00:04:21]} c5 {[%clk 00:38:28]} {[%emt 00:00:14]} 24.
Nd2 {[%clk 00:16:01]} {[%emt 00:01:33]} Bc6 {[%clk 00:38:32]} {[%emt 00:00:26]}
25. b3 {[%clk 00:15:15]} {[%emt 00:01:17]} c4 {[%clk 00:34:03]} {[%emt
00:04:59]} 26. e4 {[%clk 00:10:25]} {[%emt 00:05:20]} cxb3+ {[%clk 00:33:29]}
{[%emt 00:01:04]} 27. Kxb3 {[%clk 00:10:45]} {[%emt 00:00:09]} b5 {[%clk
00:32:41]} {[%emt 00:01:19]} 28. Bd4 {[%clk 00:08:52]} {[%emt 00:02:23]} bxa4+
{[%clk 00:32:51]} {[%emt 00:00:20]} 29. Kc2 {[%clk 00:08:59]} {[%emt 00:00:22]}
Rb8 {[%clk 00:27:55]} {[%emt 00:05:26]} 30. hxg6 {[%clk 00:08:46]} {[%emt
00:00:43]} hxg6 {[%clk 00:27:52]} {[%emt 00:00:33]} 31. Ra1 {[%clk 00:07:04]}
{[%emt 00:02:12]} g5 {[%clk 00:22:34]} {[%emt 00:05:47]} 32. g4 {[%clk
00:06:25]} {[%emt 00:01:11]} Bxd4 {[%clk 00:17:22]} {[%emt 00:05:42]} 33. cxd4
{[%clk 00:06:50]} {[%emt 00:00:04]} Rb4 {[%clk 00:17:42]} {[%emt 00:00:10]} 34.
d5 {[%clk 00:05:43]} {[%emt 00:01:37]} Bb5 {[%clk 00:18:05]} {[%emt 00:00:07]}
35. Bf1 {[%clk 00:05:29]} {[%emt 00:00:44]} Bxf1 {[%clk 00:17:11]} {[%emt
00:01:24]} 36. Rxf1 {[%clk 00:04:35]} {[%emt 00:01:25]} a3 {[%emt 00:00:22]} 37.
Ra1 {[%clk 00:04:41]} {[%emt 00:00:07]} Nb5 {[%clk 00:17:57]} {[%emt 00:00:08]}
38. Kd3 {[%clk 00:04:28]} {[%emt 00:00:44]} a4 {[%clk 00:14:42]} {[%emt
00:03:45]} 39. Kc2 {[%clk 00:01:41]} {[%emt 00:03:16]} Rb2+ {[%clk 00:10:07]}
{[%emt 00:05:05]} 40. Kd3 {[%clk 00:00:34]} {[%emt 00:01:37]} a2 {[%clk
00:10:27]} {[%emt 00:00:10]} 41. Kc4 {[%clk 00:26:50]} {[%emt 00:04:14]} Kg7
{[%clk 00:35:50]} {[%emt 00:05:07]} 42. Kc5 {[%clk 00:17:47]} {[%emt 00:09:33]}
Na3 {[%emt 00:01:53]} 43. Nc4 {[%clk 00:15:11]} {[%emt 00:03:03]} Rc2 {[%clk
00:34:52]} {[%emt 00:00:08]} 44. Kb4 {[%clk 00:15:31]} {[%emt 00:00:11]} Nxc4
{[%clk 00:35:15]} {[%emt 00:00:06]} 0-1

[Event "Masterklassen 2025"]
[Site "Uppsala, Sweden"]
[Date "2025.06.29"]
[Round "2.9"]
[White "Walinder, Lars"]
[Black "Soppela, Toni"]
[Result "1-0"]
[TimeControl "90 min for 40 move + 30 min with an increment of 30 sec starting move 1"]
[WhiteTitle "FM"]
[WhiteFideId "1707329"]
[BlackFideId "1766163"]
[WhiteElo "2181"]
[BlackElo "2090"]

1. c4 {[%clk 01:30:52]} {[%emt 00:00:07]} g6 {[%clk 01:30:34]} {[%emt
00:00:26]} 2. e4 {[%clk 01:30:41]} {[%emt 00:00:42]} c5 {[%clk 01:29:25]}
{[%emt 00:01:38]} 3. Nf3 {[%clk 01:30:38]} {[%emt 00:00:34]} Nc6 {[%clk
01:29:32]} {[%emt 00:00:23]} 4. d4 {[%clk 01:29:22]} {[%emt 00:01:46]} cxd4
{[%clk 01:29:16]} {[%emt 00:00:46]} 5. Nxd4 {[%clk 01:29:07]} {[%emt 00:00:44]}
Nf6 {[%clk 01:29:09]} {[%emt 00:00:37]} 6. Nc3 {[%clk 01:27:22]} {[%emt
00:02:16]} Nxd4 {[%clk 01:28:11]} {[%emt 00:01:27]} 7. Qxd4 {[%clk 01:27:44]}
{[%emt 00:00:08]} d6 {[%clk 01:27:38]} {[%emt 00:01:03]} 8. f3 {[%clk
01:25:52]} {[%emt 00:02:23]} Bg7 {[%clk 01:26:44]} {[%emt 00:01:24]} 9. Be3
{[%clk 01:25:56]} {[%emt 00:00:26]} O-O {[%clk 01:26:13]} {[%emt 00:01:00]} 10.
Qd2 {[%clk 01:26:09]} {[%emt 00:00:18]} Be6 {[%clk 01:25:08]} {[%emt 00:01:34]}
11. Rc1 {[%clk 01:22:04]} {[%emt 00:04:35]} Qa5 {[%clk 01:21:05]} {[%emt
00:04:33]} 12. b3 {[%clk 01:15:37]} {[%emt 00:06:58]} Rfc8 {[%clk 01:20:12]}
{[%emt 00:01:21]} 13. Be2 {[%clk 01:15:18]} {[%emt 00:00:50]} a6 {[%clk
01:16:51]} {[%emt 00:03:51]} 14. Na4 {[%clk 01:15:07]} {[%emt 00:00:42]} Qxd2+
{[%clk 01:16:00]} {[%emt 00:01:21]} 15. Kxd2 {[%clk 01:15:16]} {[%emt
00:00:20]} Nd7 {[%clk 01:15:11]} {[%emt 00:01:19]} 16. g4 {[%clk 01:11:41]}
{[%emt 00:04:05]} f5 {[%clk 00:59:37]} {[%emt 00:16:05]} 17. exf5 {[%clk
01:08:53]} {[%emt 00:03:18]} gxf5 {[%clk 00:58:40]} {[%emt 00:01:25]} 18. h3
{[%clk 01:08:40]} {[%emt 00:00:44]} Rf8 {[%clk 00:54:39]} {[%emt 00:04:32]} 19.
f4 {[%clk 00:45:10]} {[%emt 00:23:59]} Nf6 {[%clk 00:45:36]} {[%emt 00:09:33]}
20. Rhg1 {[%clk 00:41:27]} {[%emt 00:04:14]} Ne4+ {[%clk 00:34:15]} {[%emt
00:11:51]} 21. Ke1 {[%clk 00:38:45]} {[%emt 00:03:12]} Kh8 {[%clk 00:29:13]}
{[%emt 00:05:31]} 22. Bd3 {[%clk 00:35:45]} {[%emt 00:03:30]} Rad8 {[%clk
00:20:07]} {[%emt 00:09:35]} 23. Ke2 {[%clk 00:29:53]} {[%emt 00:06:24]} Bd7
{[%clk 00:17:25]} {[%emt 00:03:12]} 24. Bxe4 {[%clk 00:21:28]} {[%emt
00:08:55]} fxe4 {[%clk 00:17:52]} {[%emt 00:00:03]} 25. Nc3 {[%clk 00:21:34]}
{[%emt 00:00:23]} Bc6 {[%clk 00:17:18]} {[%emt 00:01:04]} 26. Bb6 {[%clk
00:18:44]} {[%emt 00:03:21]} Rde8 {[%clk 00:15:23]} {[%emt 00:02:25]} 27. Ke3
{[%clk 00:17:59]} {[%emt 00:01:15]} Bxc3 {[%clk 00:08:03]} {[%emt 00:07:49]} 28.
Rxc3 {[%clk 00:18:20]} {[%emt 00:00:09]} Kg8 {[%clk 00:08:16]} {[%emt
00:00:17]} 29. Rc2 {[%clk 00:18:06]} {[%emt 00:00:45]} Kf7 {[%clk 00:08:32]}
{[%emt 00:00:14]} 30. Rf2 {[%clk 00:15:30]} {[%emt 00:03:05]} e6 {[%clk
00:08:30]} {[%emt 00:00:33]} 31. Rd1 {[%clk 00:14:07]} {[%emt 00:01:52]} d5
{[%clk 00:08:04]} {[%emt 00:00:56]} 32. Bc5 {[%clk 00:13:03]} {[%emt 00:01:34]}
Rg8 {[%clk 00:08:15]} {[%emt 00:00:19]} 33. f5 {[%clk 00:13:13]} {[%emt
00:00:20]} dxc4 {[%clk 00:04:01]} {[%emt 00:04:45]} 34. fxe6+ {[%clk 00:13:22]}
{[%emt 00:00:20]} Kg6 {[%clk 00:03:50]} {[%emt 00:00:42]} 35. e7 {[%clk
00:13:29]} {[%emt 00:00:23]} cxb3 {[%clk 00:04:07]} {[%emt 00:00:13]} 36. Rd6+
{[%clk 00:06:43]} {[%emt 00:07:15]} Kg5 {[%clk 00:04:20]} {[%emt 00:00:18]} 37.
Rf5+ {[%clk 00:06:56]} {[%emt 00:00:17]} Kh4 {[%clk 00:04:41]} {[%emt
00:00:07]} 38. Rh6+ {[%clk 00:06:57]} {[%emt 00:00:30]} Kg3 {[%clk 00:04:50]}
{[%emt 00:00:21]} 39. Bd6 {[%clk 00:05:48]} {[%emt 00:01:39]} Kg2 {[%clk
00:05:13]} {[%emt 00:00:07]} 40. Rf2+ {[%clk 00:05:39]} {[%emt 00:00:40]} Kg1
{[%clk 00:05:26]} {[%emt 00:00:17]} 41. Bh2+ {[%clk 00:04:40]} {[%emt
00:01:28]} 1-0

[Event "Masterklassen 2025"]
[Site "Uppsala, Sweden"]
[Date "2025.06.29"]
[Round "2.10"]
[White "Jaderberg, Bjorn"]
[Black "Muntean, Victor"]
[Result "0-1"]
[TimeControl "90 min for 40 move + 30 min with an increment of 30 sec starting move 1"]
[WhiteFideId "1712403"]
[BlackFideId "1054414"]
[WhiteElo "2112"]
[BlackElo "2140"]

1. d4 {[%clk 01:30:58]} {[%emt 00:00:02]} Nf6 {[%clk 01:30:55]} {[%emt
00:00:06]} 2. Nc3 {[%clk 01:31:12]} {[%emt 00:00:15]} d5 {[%clk 01:31:21]}
{[%emt 00:00:05]} 3. Bf4 {[%clk 01:31:30]} {[%emt 00:00:12]} a6 {[%clk
01:31:46]} {[%emt 00:00:05]} 4. e3 {[%clk 01:31:41]} {[%emt 00:00:19]} h6
{[%clk 01:32:09]} {[%emt 00:00:07]} 5. Bd3 {[%clk 01:31:38]} {[%emt 00:00:32]}
e6 {[%clk 01:32:08]} {[%emt 00:00:31]} 6. h3 {[%clk 01:31:27]} {[%emt
00:00:40]} c5 {[%clk 01:32:03]} {[%emt 00:00:36]} 7. Nf3 {[%clk 01:31:08]}
{[%emt 00:00:49]} Nc6 {[%clk 01:31:58]} {[%emt 00:00:35]} 8. O-O {[%clk
01:30:06]} {[%emt 00:01:32]} c4 {[%clk 01:26:43]} {[%emt 00:05:46]} 9. Be2
{[%clk 01:30:23]} {[%emt 00:00:11]} b5 {[%clk 01:26:55]} {[%emt 00:00:19]} 10.
a3 {[%clk 01:25:53]} {[%emt 00:05:00]} b4 {[%clk 01:22:18]} {[%emt 00:05:08]}
11. axb4 {[%clk 01:11:37]} {[%emt 00:14:45]} Bxb4 {[%clk 01:22:36]} {[%emt
00:00:12]} 12. Nb5 {[%clk 01:09:38]} {[%emt 00:02:29]} O-O {[%clk 01:19:27]}
{[%emt 00:03:39]} 13. Ra2 {[%clk 00:58:08]} {[%emt 00:12:00]} Ne4 {[%clk
01:10:51]} {[%emt 00:09:05]} 14. Na3 {[%clk 00:49:45]} {[%emt 00:08:53]} Qb6
{[%clk 01:04:24]} {[%emt 00:06:58]} 15. Nb1 {[%clk 00:48:15]} {[%emt 00:01:59]}
a5 {[%clk 00:52:14]} {[%emt 00:12:42]} 16. c3 {[%clk 00:40:29]} {[%emt
00:08:16]} Bd6 {[%clk 00:48:11]} {[%emt 00:04:33]} 17. Nbd2 {[%clk 00:40:31]}
{[%emt 00:00:27]} Bxf4 {[%clk 00:40:52]} {[%emt 00:07:49]} 18. exf4 {[%clk
00:40:50]} {[%emt 00:00:11]} f5 {[%clk 00:39:34]} {[%emt 00:01:49]} 19. Ne5
{[%clk 00:39:20]} {[%emt 00:01:58]} Nxe5 {[%clk 00:37:29]} {[%emt 00:02:37]} 20.
fxe5 {[%clk 00:39:26]} {[%emt 00:00:24]} Bd7 {[%clk 00:34:58]} {[%emt
00:03:01]} 21. Kh2 {[%clk 00:34:20]} {[%emt 00:05:35]} Be8 {[%clk 00:33:34]}
{[%emt 00:01:55]} 22. Nxe4 {[%clk 00:32:10]} {[%emt 00:02:39]} fxe4 {[%clk
00:33:55]} {[%emt 00:00:09]} 23. Qd2 {[%clk 00:31:43]} {[%emt 00:00:57]} Bg6
{[%clk 00:31:56]} {[%emt 00:02:29]} 24. h4 {[%clk 00:27:38]} {[%emt 00:04:35]}
Rab8 {[%clk 00:30:06]} {[%emt 00:02:21]} 25. Kg1 {[%clk 00:26:44]} {[%emt
00:01:23]} Qd8 {[%clk 00:29:14]} {[%emt 00:01:23]} 26. g3 {[%clk 00:26:49]}
{[%emt 00:00:25]} Rb5 {[%clk 00:28:36]} {[%emt 00:01:07]} 27. Bg4 {[%clk
00:19:36]} {[%emt 00:07:43]} Bf5 {[%clk 00:27:34]} {[%emt 00:01:33]} 28. Qe2
{[%clk 00:18:52]} {[%emt 00:01:13]} Qb6 {[%clk 00:27:03]} {[%emt 00:01:01]} 29.
Bxf5 {[%clk 00:13:58]} {[%emt 00:05:24]} Rxf5 {[%clk 00:27:24]} {[%emt
00:00:09]} 30. Kg2 {[%clk 00:14:20]} {[%emt 00:00:08]} Rf3 {[%clk 00:27:33]}
{[%emt 00:00:21]} 31. Qc2 {[%clk 00:11:43]} {[%emt 00:03:07]} Rb3 {[%clk
00:27:45]} {[%emt 00:00:18]} 32. Re1 {[%clk 00:11:42]} {[%emt 00:00:30]} Rd3
{[%clk 00:22:15]} {[%emt 00:06:01]} 33. Re3 {[%clk 00:11:33]} {[%emt 00:00:39]}
a4 {[%clk 00:22:13]} {[%emt 00:00:33]} 34. Qe2 {[%clk 00:10:30]} {[%emt
00:01:31]} a3 {[%clk 00:21:29]} {[%emt 00:01:15]} 35. Rxd3 {[%clk 00:05:41]}
{[%emt 00:05:19]} cxd3 {[%clk 00:21:15]} {[%emt 00:00:44]} 36. Qh5 {[%clk
00:06:04]} {[%emt 00:00:07]} Qb8 {[%clk 00:21:02]} {[%emt 00:00:44]} 37. bxa3
{[%clk 00:05:27]} {[%emt 00:01:06]} Rxc3 {[%clk 00:20:31]} {[%emt 00:01:01]} 38.
Qg4 {[%clk 00:04:07]} {[%emt 00:01:50]} Qe8 {[%clk 00:18:52]} {[%emt 00:02:08]}
39. Rb2 {[%clk 00:04:05]} {[%emt 00:00:34]} Qf7 {[%clk 00:18:31]} {[%emt
00:00:51]} 40. Kh3 {[%clk 00:00:39]} {[%emt 00:03:56]} Rc2 {[%clk 00:16:01]}
{[%emt 00:02:59]} 41. Rb8+ {[%clk 00:00:32]} {[%emt 00:00:38]} Kh7 {[%clk
00:16:25]} {[%emt 00:00:06]} 0-1

[Event "Masterklassen 2025"]
[Site "Uppsala, Sweden"]
[Date "2025.06.29"]
[Round "2.11"]
[White "Hagevi, Vidar"]
[Black "Darnell, Anton"]
[Result "1-0"]
[TimeControl "90 min for 40 move + 30 min with an increment of 30 sec starting move 1"]
[WhiteFideId "1767526"]
[BlackFideId "1720244"]
[WhiteElo "2139"]
[BlackElo "2007"]

1. d4 {[%clk 01:30:54]} {[%emt 00:00:05]} d5 {[%clk 01:30:12]} {[%emt
00:00:44]} 2. Nf3 {[%clk 01:30:42]} {[%emt 00:00:47]} Nf6 {[%clk 01:30:25]}
{[%emt 00:00:16]} 3. c4 {[%clk 01:31:05]} {[%emt 00:00:08]} e6 {[%clk
01:30:39]} {[%emt 00:00:17]} 4. g3 {[%clk 01:31:23]} {[%emt 00:00:12]} c6
{[%clk 01:30:22]} {[%emt 00:00:47]} 5. Bg2 {[%clk 01:31:23]} {[%emt 00:00:29]}
Nbd7 {[%clk 01:30:34]} {[%emt 00:00:18]} 6. O-O {[%clk 01:29:28]} {[%emt
00:02:24]} Bd6 {[%clk 01:30:47]} {[%emt 00:00:18]} 7. Qc2 {[%clk 01:28:45]}
{[%emt 00:01:12]} O-O {[%clk 01:29:34]} {[%emt 00:01:43]} 8. Rd1 {[%clk
01:26:19]} {[%emt 00:02:56]} Ne4 {[%clk 01:29:28]} {[%emt 00:00:37]} 9. b3
{[%clk 01:22:44]} {[%emt 00:04:05]} Qe7 {[%clk 01:21:37]} {[%emt 00:08:21]} 10.
Bb2 {[%clk 01:21:07]} {[%emt 00:02:06]} f5 {[%clk 01:20:22]} {[%emt 00:01:45]}
11. e3 {[%clk 01:07:41]} {[%emt 00:13:56]} Ndf6 {[%clk 01:14:06]} {[%emt
00:06:46]} 12. Nc3 {[%clk 01:02:36]} {[%emt 00:05:35]} Ng4 {[%clk 01:04:59]}
{[%emt 00:09:37]} 13. Rf1 {[%clk 00:59:47]} {[%emt 00:03:19]} Bd7 {[%clk
01:02:49]} {[%emt 00:02:41]} 14. Ne2 {[%clk 00:51:33]} {[%emt 00:08:44]} Be8
{[%clk 00:51:31]} {[%emt 00:11:48]} 15. Ne5 {[%emt 00:24:47]} g5 {[%clk
00:30:22]} 16. Nxg4 {[%clk 00:35:43]} {[%emt 00:13:42]} fxg4 {[%clk 00:30:41]}
{[%emt 00:00:11]} 17. Nc3 {[%clk 00:32:27]} {[%emt 00:03:47]} Nxc3 {[%clk
00:30:21]} {[%emt 00:00:50]} 18. Qxc3 {[%clk 00:29:59]} {[%emt 00:02:58]} Bg6
{[%clk 00:28:30]} {[%emt 00:02:20]} 19. e4 {[%clk 00:26:46]} {[%emt 00:03:43]}
dxe4 {[%clk 00:13:35]} {[%emt 00:15:26]} 20. c5 {[%clk 00:25:59]} {[%emt
00:01:17]} Bc7 {[%clk 00:13:16]} {[%emt 00:00:49]} 21. Rae1 {[%clk 00:22:26]}
{[%emt 00:04:02]} Rf3 {[%clk 00:03:12]} {[%emt 00:10:34]} 22. Bxf3 {[%clk
00:18:33]} {[%emt 00:04:23]} gxf3 {[%clk 00:02:09]} {[%emt 00:01:33]} 23. d5
{[%clk 00:18:06]} {[%emt 00:00:58]} exd5 {[%clk 00:02:29]} {[%emt 00:00:10]} 24.
Qh8+ {[%clk 00:14:07]} {[%emt 00:04:28]} Kf7 {[%clk 00:02:52]} {[%emt
00:00:07]} 25. Qxa8 {[%clk 00:12:50]} {[%emt 00:01:47]} Qd7 {[%clk 00:00:54]}
{[%emt 00:02:28]} 26. Kh1 {[%clk 00:12:35]} {[%emt 00:00:44]} Bxg3 {[%clk
00:00:50]} {[%emt 00:00:35]} 27. fxg3 {[%clk 00:12:04]} {[%emt 00:01:02]} Qh3
{[%clk 00:00:39]} {[%emt 00:00:40]} 28. Rxf3+ {[%clk 00:12:01]} {[%emt
00:00:33]} 1-0